Cogmind - Beta 14 @@@ ROGUE MODE // 2024.11.03 @ 07:09:49 Player: Flawless Result: Destroyed by as-00512 with Assembled Rifle Performance ------------- Evolutions (1) 500 Regions Visited (3) 600 Robots Destroyed (31) 155 Value Destroyed (702) 702 Prototype IDs (3) 60 Alien Tech Used (0) 0 Bonus (0) 0 TOTAL SCORE: 2017 Bonus ------- None Cogmind --------- Core Integrity 0/400 Matter 251/300 Energy 80/100 System Corruption 0% Temperature Cool (0) Movement Core (150) Ox2 Location -9/Mines Parts ------- > --- POWER (1) -------- (None) > --- PROPULSION (3) --- (None) > --- UTILITY (3) ------ Large Storage Unit Weight Redist. System > --- WEAPON (2) ------- Beam Cannon > --- INVENTORY (15) --- Compact Battery (200) Advanced Targeting Computer Heavy Assault Rifle Datajack Peak State ------------ > --- POWER ------------ Light Nuclear Core > --- PROPULSION ------- Light Treads Light Treads Light Treads > --- UTILITY ---------- Large Storage Unit Weight Redist. System Core Shielding > --- WEAPON ----------- Light Cannon Rocket Launcher > --- INVENTORY -------- Compact Battery Advanced Targeting Computer Beam Cannon Heavy Assault Rifle Datajack [Rating: 14] Favorites ----------- Power Light Ion Engine Engine Light Ion Engine Power Core Light Nuclear Core Propulsion Aluminum Leg Treads Light Treads Leg Aluminum Leg Utility Small Storage Unit Device Weight Redist. System Storage Small Storage Unit Protection Core Shielding Weapon Light Assault Rifle Energy Cannon Beam Cannon Ballistic Gun Light Assault Rifle Ballistic Cannon Light Cannon Launcher Rocket Launcher Build | -11 -10 -9 -9 ------- Run | Yrd Mat Mat Min Slots Evolved 2 | . . 2 . Power . | . . . . Propulsion 1 | . . 1 . Utility 1 | . . 1 . Weapon . | . . . . Parts Attached 33 | 4 9 18 2 Power 7 | 1 1 5 . Engine 6 | 1 1 4 . Core 1 | . . 1 . Reactor . | . . . . Propulsion 9 | 2 2 5 . Treads 5 | 2 . 3 . Leg 4 | . 2 2 . Wheel . | . . . . Hover . | . . . . Flight . | . . . . Utility 5 | 1 1 3 . Device 1 | . . 1 . Storage 2 | 1 . 1 . Processor . | . . . . Hackware . | . . . . Protection 2 | . 1 1 . Artifact . | . . . . Weapon 12 | . 5 5 2 Energy Gun . | . . . . Energy Cannon 2 | . . 1 1 Ballistic Gun 6 | . 5 1 . Ballistic Cannon 1 | . . 1 . Launcher 3 | . . 2 1 Special Weapon . | . . . . Impact Weapon . | . . . . Slashing Weapon . | . . . . Piercing Weapon . | . . . . Special Melee Weapon . | . . . . Unidentified Prototypes 1 | . . 1 . Parts Lost 15 | . 1 7 7 Power 2 | . . 1 1 Propulsion 7 | . 1 3 3 Utility 1 | . . . 1 Weapon 5 | . . 3 2 Highest Loss Streak 7 | . 1 3 7 To Critical Strikes . | . . . . Average Slot Usage (%) 87 | . 92 85 66 Engine 9 | . 14 6 . Core 1 | . . 2 . Treads 13 | . 19 9 16 Leg 13 | . 7 18 . Device 3 | . . 5 11 Storage 15 | . 14 16 11 Protection 10 | . 10 11 11 Ballistic Gun 17 | . 24 11 . Ballistic Cannon 1 | . . 3 11 Peak Build Rating 14 | 4 7 12 14 Average Rating 7 | 3 6 9 9 On Entrance 5 | . 4 7 12 Naked Turns . | . . . . Heaviest Build 35 | 10 15 35 29 Greatest Support 46 | 40 40 46 46 Greatest Overweight (x) 2 | . . 2 . Average Overweight (x) . | . . . . Largest Inventory Capacity 15 | 8 8 15 15 Average Capacity 11 | 7 8 15 15 Most Carried 7 | 4 7 6 6 Average Carried 3 | 1 3 3 5 Final Capacity 15 | 8 8 15 15 Final Carried 6 | 3 6 6 4 Class Distribution -------------------- 56% | Scavenger-Mutant 43% | Mutant Dominant Class ---------------- Mutant | -10/Materials Scavenger-Mutant | -9/Materials Scavenger-Mutant | -9/Mines Resources | -11 -10 -9 -9 ----------- Run | Yrd Mat Mat Min Matter Collected 728 | 203 181 344 . Remotely . | . . . . Salvage Created 735 | . 206 501 28 Parts 73 | . 27 46 . Haulers Intercepted 1 | . . 1 . Recyclers Shooed 1 | . . 1 . Parts Field Recycled . | . . . . Retrieved Matter . | . . . . Parts Self-Destructed . | . . . . Prevented . | . . . . Kills | -11 -10 -9 -9 ------- Run | Yrd Mat Mat Min Combat Hostiles Destroyed 35 | . 9 15 11 Guns 15 | . 9 6 . Cannons 4 | . . 4 . AOE 16 | . . 5 11 Classes Destroyed 9 | . 3 5 1 Worker 2 | . . 2 . Builder 2 | . . 2 . Hauler 1 | . . 1 . Mechanic 1 | . . 1 . Watcher 1 | . 1 . . Swarmer 11 | . 6 5 . Grunt 9 | . 3 6 . Sentry 4 | . . 4 . Assembled 11 | . . . 11 Best Kill Streak 11 | . 4 8 11 Combat Bots Only 11 | . 4 4 11 Max Kills in Single Turn 6 | . 1 5 6 Gunslinging . | . . . . Exploded 6 | . . 3 6 Melee . | . . . . Uniques/NPCs Destroyed . | . . . . Combat | -11 -10 -9 -9 -------- Run | Yrd Mat Mat Min Hostile Shots Fired 250 | . 88 111 51 Missed 69 | . 31 26 12 Damage Taken 2301 | . 487 1096 718 Core 530 | . 121 232 177 Absorbed by Shields . | . . . . Redirected to Shielding 55 | . . 35 20 Core Remaining (%) 75 | 100 51 . . Volleys Fired 112 | . 42 65 5 Largest 2 | . 2 2 2 Hottest 68 | . 40 53 68 Shots Fired 185 | . 63 113 9 Gun 158 | . 63 95 . Cannon 19 | . . 14 5 Launcher 8 | . . 4 4 Special . | . . . . Kinetic 177 | . 63 109 5 Thermal . | . . . . Explosive 8 | . . 4 4 Electromagnetic . | . . . . Robot Hit Streak 11 | . 6 11 3 Robot Miss Streak 4 | . 4 4 2 Penetration Max . | . . . . Secondary Targets 1 | . 1 . . Max Gunslinging Chain 1 | . 1 . . Shots Hit Robots 121 | . 35 81 5 Core Hits 88 | . 19 40 29 Critical Kills . | . . . . Critical Parts Destroyed 1 | . 1 . . Critical Strikes 1 | . 1 . . Destroy 1 | . 1 . . Melee Attacks . | . . . . Impact . | . . . . Slashing . | . . . . Piercing . | . . . . Sneak Attacks . | . . . . Combat Hostiles . | . . . . Follow-up Attacks . | . . . . Damage Inflicted 2937 | . 325 1460 1152 Guns 901 | . 325 576 . Cannons 260 | . . 191 69 Explosions 1776 | . . 693 1083 Melee . | . . . . Ramming . | . . . . Kinetic 1161 | . 325 767 69 Thermal 185 | . . 185 . Explosive 1591 | . . 508 1083 Electromagnetic . | . . . . Impact . | . . . . Slashing . | . . . . Piercing . | . . . . Highest Corruption . | . . . . Average Corruption . | . . . . Corruption Purged . | . . . . Corruption Blocked . | . . . . Overload Shots . | . . . . Overflow Damage 200 | . . 155 45 Projectiles . | . . . . Explosions 200 | . . 155 45 Melee . | . . . . Knockbacks 5 | . . 1 4 Impact . | . . . . Kinetic 4 | . . 1 3 Secondary 1 | . . . 1 Self-Inflicted Damage 89 | . . 58 31 Shots 3 | . . 2 1 Rammed . | . . . . Targets Rammed . | . . . . Kicked . | . . . . Crushed . | . . . . Highest Temperature 38 | . 19 36 38 Average Temperature 8 | . 8 7 14 Received Heat Transfer 528 | . 54 414 60 Siege Activations . | . . . . Robots Corrupted . | . . . . Combat Hostiles . | . . . . Parts Fried . | . . . . Impact Corruptions . | . . . . Robots Melted . | . . . . Combat Hostiles . | . . . . Parts Melted . | . . . . Heat Transferred 150 | . . 150 . Parts Sabotaged . | . . . . Parts Stolen . | . . . . Parts Stripped . | . . . . Power Chain Reactions . | . . . . Alert | -11 -10 -9 -9 ------- Run | Yrd Mat Mat Min Peak Influence 370 | . 190 370 110 Initial 100 | . . . 100 Average 116 | . 63 163 90 Maximum Alert Level 1 | . . 1 . Low Security (%) 74 | 100 100 52 100 Level 1 25 | . . 47 . Level 2 . | . . . . Level 3 . | . . . . Level 4 . | . . . . Level 5 . | . . . . High Security . | . . . . Max Security . | . . . . Squads Dispatched 3 | . 2 1 . Investigation . | . . . . Extermination . | . . . . Reinforcement 3 | . 2 1 . Assault . | . . . . Garrison . | . . . . Intercept . | . . . . Searches Triggered . | . . . . Construction Impeded . | . . . . Haulers Reinforced . | . . . . Active Scanning Responses . | . . . . Cargo Convoy Interrupts . | . . . . Stealth | -11 -10 -9 -9 --------- Run | Yrd Mat Mat Min Distress Signals 4 | . . 4 . Communications Jammed . | . . . . Distress Signals . | . . . . Times Spotted 60 | . 18 22 20 Peak Tracking Total 20 | . 4 5 20 Tactical Retreats 2 | . . 2 . Traps | -11 -10 -9 -9 ------- Run | Yrd Mat Mat Min Traps Triggered . | . . . . Indirectly . | . . . . Trap Hack Attempts . | . . . . Triggered . | . . . . Disarmed . | . . . . Reprogrammed . | . . . . Reused . | . . . . Traps Extracted . | . . . . Installed . | . . . . Triggered . | . . . . Machines | -11 -10 -9 -9 ---------- Run | Yrd Mat Mat Min Machines Disabled 5 | . . 5 . Max in Single Turn 3 | . . 3 . Machines Repaired . | . . . . Machines Dismantled . | . . . . Machines Sabotaged . | . . . . Overloaded Fab Kills . | . . . . Hacking | -11 -10 -9 -9 --------- Run | Yrd Mat Mat Min Machines Accessed 7 | . 4 3 . Terminals 5 | . 3 2 . Fabricators . | . . . . Repair Stations 1 | . . 1 . Recycling Units 1 | . 1 . . Scanalyzers . | . . . . Garrison Access . | . . . . Total Hacks 10 | . 5 5 . Successful 7 | . 4 3 . Failed 3 | . 1 2 . Catastrophic . | . . . . Database Lockouts . | . . . . Manual . | . . . . Terminals 7 | . 3 4 . Fabricators . | . . . . Repair Stations 1 | . . 1 . Recycling Units 2 | . 2 . . Scanalyzers . | . . . . Garrison Access . | . . . . Terminal Hacks 5 | . 2 3 . Record 4 | . 1 3 . Prototype ID Bank 1 | . 1 . . Fabricator Hacks . | . . . . Repair Station Hacks . | . . . . Recycling Unit Hacks 2 | . 2 . . Recycle Component 1 | . 1 . . Process 1 | . 1 . . Scanalyzer . | . . . . Garrison Access Hacks . | . . . . Unauthorized Hacks . | . . . . Terminals . | . . . . Fabricators . | . . . . Repair Stations . | . . . . Recycling Units . | . . . . Scanalyzers . | . . . . Garrison Access . | . . . . Data Cores Recovered . | . . . . Used . | . . . . Hacking Detections 4 | . 3 1 . Full Trace Events . | . . . . Feedback Events . | . . . . Feedback Blocked . | . . . . Robot Schematics Acquired . | . . . . Robots Built . | . . . . Authchips . | . . . . Time . | . . . . Total Robot Build Rating . | . . . . Part Schematics Acquired . | . . . . Parts Built . | . . . . Authchips . | . . . . Time . | . . . . Total Part Build Rating . | . . . . Parts Repaired . | . . . . Time . | . . . . Parts Recycled 1 | . 1 . . Recycled Matter 146 | . 146 . . Retrieved Matter . | . . . . Retrieved Components . | . . . . Parts Scanalyzed . | . . . . Part Schematics Acquired . | . . . . Parts Damaged . | . . . . Bothacking | -11 -10 -9 -9 ------------ Run | Yrd Mat Mat Min Used RIF Installer . | . . . . Robots Hacked . | . . . . Non-combat . | . . . . Combat . | . . . . Robot Hacks Applied . | . . . . Relay Couplers Released . | . . . . Fabnet Peak Effective % . | . . . . Robots Rewired . | . . . . Allies Hacked . | . . . . Hacks Repelled . | . . . . Allies | -11 -10 -9 -9 -------- Run | Yrd Mat Mat Min Total Allies . | . . . . Largest Group . | . . . . Highest-Rated Group . | . . . . Highest-Rated Ally . | . . . . Total Orders . | . . . . Ally Attacks . | . . . . Total Damage . | . . . . Kills . | . . . . Allies Corrupted . | . . . . Allies Melted . | . . . . Intel | -11 -10 -9 -9 ------- Run | Yrd Mat Mat Min Robot Analysis Total . | . . . . Derelict Logs Recovered . | . . . . Drone Launches . | . . . . Drone Recoveries . | . . . . Exploration | -11 -10 -9 -9 ------------- Run | Yrd Mat Mat Min Turns Passed 2212 | 80 902 1211 19 Spaces Moved 1054 | 45 489 518 2 Core 25 | 10 . 15 . Treads 487 | 35 299 151 2 Legs 542 | . 190 352 . Wheels . | . . . . Hover . | . . . . Flight . | . . . . Fastest Speed 50 | 50 120 150 160 Average Speed 162 | 135 144 181 160 Slowest Speed 260 | 160 160 260 160 Overloaded Moves . | . . . . Propulsion Burnouts . | . . . . Robots Hopped . | . . . . Cave-ins Triggered . | . . . . Exploration Rate (%) 24 | 4 52 33 8 Regions Visited 3 Branch Regions 1 Pre-discovered Areas . | . . . . Known Exits Taken . | . . . . Unknown Exits Taken 3 | 1 1 1 . Scrap Searched . | . . . . Spaces Dug . | . . . . Terrain Destroyed 72 | . . 46 26 Melee . | . . . . Projectile . | . . . . AOE 72 | . . 46 26 Terrain Rammed . | . . . . Walls Destroyed . | . . . . Machines Disabled . | . . . . Actions | -11 -10 -9 -9 --------- Run | Yrd Mat Mat Min Total 1410 | 64 637 700 9 Wait 158 | 9 78 71 . Move 1051 | 44 488 517 2 Hop . | . . . . Pick Up 38 | 7 14 17 . Fast Attach . | . . . . Attach 33 | 4 9 18 2 Detach 3 | . . 3 . Swap . | . . . . Drop 15 | . 6 9 . Fire 112 | . 42 65 5 Melee . | . . . . Ram . | . . . . Kick . | . . . . Crush . | . . . . Escape Stasis . | . . . . Rewire . | . . . . Trap . | . . . . Miscellaneous . | . . . . Route ------- -11/Scrapyard -10/Materials (discovered 2 exits: *Mat / [*Min]) -9/Materials (discovered 2 exits: [*Min x2]) -9/Mines History --------- Turn | Location | Event 7 | -11/Scrapyard | Discovered new exit (range 15) 81 | -11/Scrapyard | Entered Materials 322 | -10/Materials | Build established: Mutant 634 | -10/Materials | Discovered new exit (range 14) 801 | -10/Materials | Discovered new exit (range 13) 983 | -10/Materials | Entered another Materials area 983 | -9/Materials | Evolved 2 slots: Propulsion x1, Utility x1 1045 | -9/Materials | Build established: Scavenger-Mutant 1319 | -9/Materials | Discovered new exit (range 9) 1586 | -9/Materials | Lost 3 parts (1p1n1w) 1591 | -9/Materials | Discovered new exit (range 16) 1680 | -9/Materials | Lost 3 parts (1n2w) 1847 | -9/Materials | Core integrity fell below 50% 2194 | -9/Materials | Entered Mines 2195 | -9/Mines | Assembled infested the area 2210 | -9/Mines | Core integrity fell below 20% 2213 | -9/Mines | Destroyed by as-00512 with Assembled Rifle Last Messages --------------- as-83382 knocked back. as-79414 destroyed. as-28803 destroyed. Destroyed Asb. Hover Unit. as-75173 destroyed. Destroyed Asb. Hover Unit. as-61125 destroyed. as-63731 destroyed. [Achievement: Quick And Dirty] as-03149 destroyed. Lgt. Treads destroyed. [Achievement: Let's See Who's Tougher] as-62167 knocked back. Lgt. Treads destroyed. Rocket Launcher destroyed. Core Shielding destroyed. as-92398 knocked back. Lgt. Cannon destroyed. as-92398 destroyed. Knocked back. Map ----- +----------------------------------------------------+ | ????????????????????????????????????????????? | | ????????????????????????????????????????????? | | ????????????????????????????????????????????? | | ????????????????????????????????????????????? | | ????????????????????????????????????????????? | | ????????????????????????????????????????????? | | ????????????????????????????????????????????? | | ????????????????????????????????????????????? | | ????????????????????????????????????????????? | | ????????????????????????????????????????????? | | ????????????????????????????????????????????? | | ????????????????????????????????????????????? | | ????????????????????????????????????????????? | | ????????????????????????????????????????????? | | ????????????????????????????????????????????? | | ??????????????????????????????????#?????????? | | ????????????????????????????????? #?????????? | | ???????????????????????????????? ###???????? | | ??????????????????????????????? #???????? | | ??????????????????????????????# #???????? | | ?????????????????????????????# #????????? | | ????????????????????????????# #????????? | | ???????????????????????##### #????????? | | ??????????????????????## a ###???????? | | ??????????????????????# a #???????? | | ??????????????????????# @% #??????? | | ??????????????????????# aa a #?????? | | ??????????????????????## a a ##?????? | | ???????????????????????## #??????? | | ????????????????????????# a ????? | | ????????????????????????# ???? | | ???????????????????????? % % ???? | | ???????????????????????? # < ????? | | ???????????????????????## ###### ????? | | ????????????????????????# ##??????#?????? | | ????????????????????????## ##?????????????? | | ?????????????????????????## #??????????????? | | ??????????????????????????? ??????????????? | | ???????????????????????????# ??????????????? | | ???????????????????????????? ??????????????? | | ????????????????????????????????????????????? | | ????????????????????????????????????????????? | | ????????????????????????????????????????????? | | ????????????????????????????????????????????? | | ????????????????????????????????????????????? | | ????????????????????????????????????????????? | | ????????????????????????????????????????????? | | ????????????????????????????????????????????? | | ????????????????????????????????????????????? | | ????????????????????????????????????????????? | +----------------------------------------------------+ Best States ------------- Heat Dissipation 28 Energy Generation 14 Energy Capacity 265 Matter Stores 300 Matter Capacity 300 Sight Range 16 Terrain Scan Density 10 Additional Mass Support 6 Armor Coverage 150 Core Shielding 20 Evasion (%) 55 Recoil Reduction 2 Item Schematics ----------------- None Robot Schematics ------------------ None Fabricated ------------ Nothing Alien Tech Used ----------------- None Achievements -------------- Hunted Let's See Who's Tougher Loot Pinata Quick And Dirty Challenges ------------ None Game ------ Seed AerolevTripodReconfigurator Manual? 0 Play Time 00:29:28 Cumulative 2.1 hours Start 2024.11.03 @ 06:38:54 End 2024.11.03 @ 07:09:49 Sessions 1 Manual Loads 0 Difficulty Rogue Special Mode None Game No. 6 Rogue 6 Adventurer 0 Explorer 0 Win Type - Total 0 Types 0/0/0/0/0/0/0/0/0 Lore% 2 Gallery% 5 Achievement% 5 Wizard Run 0 Options --------- Layout 1 ASCII 0 Keyboard 0 Movement Numpad Keybinds 0 Fullscreen 1 Font 24/Proggy Map View 50x35 Zoom Use 0% Tactical HUD 0 Map Filters NONE Filters NONE Steam 1 RUN: 2e07e7fe-7b95-49a1-97f7-bb95b70efc2a